bitfinex-derivatives/quotes_ETHF0:USTF0_20210405
["timestamp","ask_amount","ask_price","bid_price","bid_amount"]
[1617590400313,2.90695,2045.8,2045.7,5.39225]
[1617590400713,0.9729,2046.5,2045.7,5.39225]
[1617590400915,75.5893,2047.5,2045.8,73.3006]
[1617590402314,2.90695,2045.9,2045.8,73.3006]
[1617590402714,2.90695,2045.9,2045.7,5.39225]
[1617590402715,2.90695,2045.9,2045.7,2.90695]
[1617590404117,2.90695,2045.9,2045.2,5.1441832]
[1617590404318,2.90695,2045.9,2045.6,65.7156]
[1617590404518,2.90695,2045.9,2045.6,67.473]
[1617590404721,2.90695,2045.9,2045.6,1.7574]
[1617590405319,2.9902,2047.1,2045.6,1.7574]
[1617590405920,2.9902,2047.1,2046.4,55.1257]
[1617590406120,2.9902,2047.1,2046.4,57.6609]
[1617590406320,2.90695,2046.5,2046.4,57.6609]
[1617590407123,3.88895,2046.5,2046.4,57.6609]
[1617590407623,2.90695,2046.5,2046.4,57.6609]
[1617590410925,2.90695,2046.5,2046.4,55.1257]
[1617590413328,2.90695,2046.5,2046.4,57.4792]
[1617590415231,2.90695,2046.5,2046.4,2.3535]
[1617590418434,2.90695,2046.5,2046.3,2.90695]
[1617590423440,2.90695,2046.5,2046.3,4.90695]
[1617590423637,2.90695,2046.5,2046.3,2.90695]
[1617590424640,73.9582,2048.1,2046.5,56.322]
[1617590424837,0.9646,2048.3,2046.3,7.13275]
[1617590425038,0.9633,2048.3,2048.1,56.3085]
[1617590425237,0.9633,2048.3,2048.1,58.5168]
[1617590425438,0.9633,2048.3,2048.1,58.4401]
[1617590425642,0.9633,2048.3,2048.1,57.6407]
[1617590425840,2.9764,2049.0,2048.1,2.2083]
[1617590426041,2.9764,2049.0,2048.9,58.2159]
[1617590426241,0.9764,2049.0,2048.9,58.2159]
[1617590426441,3.88335,2049.0,2048.9,58.2159]
[1617590427142,3.88335,2049.0,2048.9,56.27]
[1617590427342,3.88335,2049.0,2048.9,2.6742]
[1617590427744,3.88335,2049.0,2048.9,0.7754]
[1617590429141,3.88335,2049.0,2048.1,2.2083]
[1617590429342,3.88335,2049.0,2048.9,61.2818]
[1617590430142,3.88335,2049.0,2048.1,2.2083]
[1617590430342,2.90695,2048.2,2047.6,2.90695]
[1617590430542,2.90695,2048.2,2047.6,76.38005]
[1617590430745,2.90695,2048.2,2047.6,2.90695]
[1617590432343,2.90695,2047.7,2047.6,2.90695]
[1617590433948,4.61325,2047.7,2046.7,2.0]
[1617590434148,4.61325,2047.7,2045.7,5.09095596]
[1617590434349,1.7063,2047.7,2047.2,2.90695]
[1617590434547,1.7063,2047.7,2045.6,2.0]
[1617590436349,2.90695,2047.0,2046.9,2.90695]
[1617590436550,2.4505,2048.2,2046.9,2.90695]
[1617590437350,2.0,2048.8,2048.1,77.7051]
[1617590437549,0.9754,2049.6,2048.1,77.7051]
[1617590437750,2.0,2049.5,2048.1,77.7051]
[1617590438350,2.0,2049.5,2048.2,2.90695]
[1617590439049,2.9754,2049.6,2048.2,2.90695]
[1617590439450,0.02,2049.5,2048.2,2.90695]
[1617590440451,2.90695,2048.3,2048.2,66.57875]
[1617590440851,2.90695,2048.3,2048.2,63.6718]
[1617590445455,2.90695,2048.3,2045.8,2.0]
[1617590445656,57.9472,2048.2,2046.9,76.3806]
[1617590446465,57.9472,2048.2,2047.3,2.90695]
[1617590446663,2.0,2048.9,2047.3,2.90695]
[1617590448460,14.0387,2049.0,2047.9,2.90695]
[1617590448661,14.0387,2049.0,2047.9,5.07035]
[1617590448860,0.02,2049.0,2047.9,5.07035]
[1617590449264,0.02,2049.0,2048.3,67.2649]
[1617590450562,2.90695,2048.4,2048.3,67.2649]
[1617590457875,2.90695,2048.4,2048.0,2.90695]
[1617590458474,2.90695,2048.4,2048.3,2.90695]
[1617590461276,2.90695,2048.4,2048.0,58.6457]
[1617590462478,2.90695,2048.1,2048.0,58.6457]
[1617590463379,2.90695,2048.1,2047.9,2.90695]
[1617590465481,2.90695,2048.1,2047.9,2.89695]
[1617590467984,2.90695,2048.1,2047.9,3.87285]
[1617590468183,2.90695,2048.1,2047.9,2.89695]
[1617590469184,2.90695,2048.1,2047.9,3.87835]
[1617590469785,2.90695,2048.1,2047.9,2.89695]
[1617590472390,3.87465,2048.1,2047.9,3.87455]
[1617590472595,2.90695,2048.1,2047.9,2.89695]
[1617590474492,2.90695,2048.1,2047.9,3.88765]
[1617590474891,2.90695,2048.1,2047.9,2.89695]
[1617590477997,5.24535,2048.1,2046.5,2.0]
[1617590478199,5.24535,2048.1,2047.0,67.3288]
[1617590478599,2.90695,2047.1,2047.0,70.23575]
[1617590478798,4.93325,2047.1,2047.0,70.23575]
[1617590479399,2.0263,2047.1,2047.0,70.23575]
[1617590479803,2.3384,2048.1,2047.0,2.90695]
[1617590480003,2.1559,2049.0,2048.1,79.572]
[1617590480202,2.9754,2049.6,2047.0,5.26055]
[1617590480602,2.9754,2049.6,2048.3,2.90695]
[1617590481806,0.9754,2049.6,2048.3,2.90695]
[1617590482707,2.90695,2048.4,2048.3,2.90695]
[1617590488712,2.90695,2048.4,2048.3,4.90695]
[1617590490415,0.9699,2049.0,2048.3,6.60035]
[1617590490617,2.90695,2049.0,2048.9,2.90695]
[1617590490815,2.90695,2049.0,2048.9,4.79465]
[1617590491616,3.87105,2049.0,2048.9,4.79465]
[1617590492916,3.87105,2049.0,2047.9,92.2969]
[1617590493119,3.87105,2049.0,2047.4,2.0]
[1617590493716,2.90695,2049.0,2047.4,2.0]
[1617590494816,0.9779,2049.0,2048.4,2.90695]
[1617590496716,2.90695,2048.5,2048.4,2.90695]
[1617590501425,4.56635,2048.5,2047.3,2.0]
[1617590501626,4.56635,2048.5,2048.0,79.7743]
[1617590501826,4.56635,2048.5,2047.5,5.10571132]
[1617590502726,1.6594,2048.5,2048.3,2.90695]
[1617590503125,3.19,2049.0,2048.3,2.90695]
[1617590503324,2.2121,2049.0,2048.3,2.90695]
[1617590503728,2.0883,2049.5,2048.3,2.90695]
[1617590503925,0.9754,2049.6,2048.3,2.90695]
[1617590504726,2.90695,2048.4,2048.3,2.90695]
[1617590504926,5.43365,2048.4,2048.3,2.90695]
[1617590506528,2.90695,2048.4,2048.3,2.90695]
[1617590508430,4.86665,2048.4,2048.3,2.90695]
[1617590511132,2.90695,2048.4,2048.3,2.90695]
[1617590512836,5.63025,2048.4,2048.3,2.90695]
[1617590513640,5.63025,2048.4,2048.1,72.8332]
[1617590516837,5.63025,2048.4,2047.2,8.04023542]
[1617590517339,5.63025,2048.4,2047.3,5.13337347]
[1617590517740,5.63025,2048.4,2047.2,87.65402383]
[1617590518340,5.63025,2048.4,2047.2,82.52055]
[1617590518841,2.90695,2047.3,2047.2,87.65417643]
[1617590519042,4.80835,2047.3,2047.2,82.52055]
[1617590519642,1.9014,2047.3,2047.2,82.52055]
[1617590519841,1.9014,2047.3,2047.2,87.65424193]
[1617590520643,1.9014,2047.3,2047.2,8.04064193]
[1617590524254,2.90695,2047.5,2047.2,8.04064193]
[1617590524653,2.90695,2047.5,2047.2,2.90695]
[1617590524852,2.90695,2047.5,2047.3,5.13398802]
[1617590525652,5.58015,2047.5,2047.2,8.04095263]
[1617590525852,5.58015,2047.5,2047.2,5.13400263]
[1617590526352,5.58015,2047.5,2045.3,11.81477677]
[1617590526353,5.58015,2047.5,2047.1,5.13445538]
[1617590526753,5.58015,2047.5,2047.0,5.13456595]
[1617590527154,2.90695,2047.1,2046.9,8.04166224]
[1617590528255,2.90695,2047.1,2046.9,2.90695]
[1617590531156,2.90695,2047.1,2046.6,5.1318366]
[1617590531557,2.90695,2047.1,2046.5,72.17023815]
[1617590531758,2.90695,2047.1,2046.5,67.0379]
[1617590531960,4.90695,2047.1,2046.5,67.0379]
[1617590533158,2.90695,2046.6,2046.5,67.0379]
[1617590533358,5.14035,2046.6,2046.5,67.0379]
[1617590534461,5.14035,2046.6,2046.5,72.16984904]
[1617590534462,2.90695,2046.6,2046.5,72.16984904]
[1617590534759,2.90695,2046.6,2046.5,67.0379]
[1617590535159,2.90695,2046.6,2046.5,69.94485]
[1617590535763,2.90695,2046.6,2046.5,75.07674552]
[1617590536266,2.90695,2046.6,2046.5,69.94485]
[1617590536764,2.90695,2046.6,2046.5,75.07671385]
[1617590537167,2.90695,2046.6,2046.5,69.94485]
[1617590537867,5.26935,2046.6,2046.5,69.94485]
[1617590538066,5.26935,2046.6,2046.5,67.0379]
[1617590538267,5.26935,2046.6,2046.5,72.17002244]
[1617590538668,5.26935,2046.6,2046.5,67.0379]
[1617590539469,5.26935,2046.6,2046.3,8.03924379]
[1617590539870,5.26935,2046.6,2046.3,5.13229379]
[1617590540273,5.26935,2046.6,2046.2,5.13241608]
[1617590540671,80.5687,2046.3,2046.0,5.13278743]
[1617590541271,80.5687,2046.3,2045.7,6.27358371]
[1617590541272,2.90695,2046.1,2045.7,2.90695]
[1617590541471,4.87315,2046.1,2045.7,2.90695]
[1617590543173,2.90695,2045.8,2045.7,2.90695]
[1617590544878,2.90695,2045.8,2045.3,5.12165779]
[1617590545177,2.90695,2045.8,2045.7,2.90695]
[1617590547581,2.0,2047.3,2045.7,2.90695]
[1617590547782,2.0,2047.3,2045.7,4.78425]
[1617590548182,74.3688,2047.3,2046.1,57.0606]
[1617590549383,74.3688,2047.3,2046.5,2.90695]
[1617590549582,2.0,2047.3,2045.4,5.11821816]
[1617590549783,57.8025,2046.8,2045.7,57.9423]
[1617590550382,60.2968,2046.8,2045.7,57.9423]
[1617590551384,60.2968,2046.8,2046.1,2.90695]
[1617590553286,2.90695,2046.2,2046.1,2.90695]
[1617590553887,60.2968,2046.8,2046.1,2.90695]
[1617590555389,60.2968,2046.8,2045.7,57.9423]
[1617590557388,60.2968,2046.8,2046.0,2.90695]
[1617590559288,2.90695,2046.1,2046.0,2.90695]
[1617590564896,2.90695,2046.1,2046.0,60.25535]
[1617590569903,2.90695,2046.1,2046.0,57.3484]
[1617590571109,2.90695,2046.1,2044.8,5.10506219]
[1617590571304,2.90695,2046.1,2045.5,72.8162]
[1617590571503,2.90695,2045.6,2045.5,72.8162]
[1617590573706,81.2581,2046.2,2045.5,72.8162]
[1617590575015,81.2581,2046.2,2045.1,2.90695]
[1617590575212,81.2581,2046.2,2045.6,78.6035]
[1617590575412,81.2581,2046.2,2045.7,2.90695]
[1617590577416,2.90695,2045.8,2045.7,2.90695]
[1617590581822,4.78135,2045.8,2045.7,2.90695]
[1617590583628,4.78135,2045.8,2045.6,63.8108]
[1617590584222,4.78135,2045.8,2045.1,5.11084753]
[1617590584423,55.3634,2045.5,2045.1,5.11084753]
[1617590584623,55.3634,2045.5,2045.0,5.11112675]
[1617590584823,55.3634,2045.5,2045.2,0.24310966]
[1617590585025,55.3634,2045.5,2045.1,0.24311911]
[1617590585423,58.27035,2045.5,2045.4,2.90695]
[1617590586024,2.90695,2045.5,2045.4,2.90695]
[1617590589925,2.90695,2045.5,2045.4,3.15109197]
[1617590605545,2.90695,2045.5,2045.4,73.34819197]
[1617590607347,2.90695,2045.5,2045.4,5.42489197]
[1617590608947,2.0,2047.1,2045.4,5.42489197]
[1617590609149,2.0,2047.1,2045.8,5.13293622]
[1617590609348,2.9879,2047.1,2045.8,5.13293622]
[1617590609547,2.9879,2047.1,2046.2,81.2019]
[1617590609746,2.9879,2047.1,2046.2,82.9322]
[1617590609947,2.9879,2047.1,2046.2,83.9087]
[1617590610449,2.0,2047.1,2046.2,82.9322]
[1617590610948,2.0,2047.1,2046.2,81.2019]
[1617590611651,2.0,2047.1,2046.3,2.90695]
[1617590612250,2.0,2047.1,2046.2,81.2019]
[1617590612450,4.7205,2047.1,2046.2,81.2019]
[1617590612850,4.7205,2047.1,2046.0,5.13247218]
[1617590613052,5.6997,2047.1,2045.9,5.13479265]
[1617590613352,5.6997,2047.1,2045.8,5.13502137]
[1617590613851,4.71685,2045.9,2045.8,5.13502137]
[1617590614050,4.71685,2045.9,2045.7,64.56951163]
[1617590614753,4.71685,2045.9,2045.7,59.4344]
[1617590615554,2.90695,2045.9,2045.7,59.4344]
[1617590615755,2.90695,2045.9,2045.7,62.34135]
[1617590616256,2.90695,2045.9,2045.7,69.77454933]
[1617590616656,2.90695,2045.9,2045.8,7.43293256]
[1617590616856,2.90695,2045.9,2045.8,9.89463256]
[1617590620258,2.90695,2045.9,2045.8,11.05779169]
[1617590620559,2.90695,2045.9,2045.8,2.4617]
[1617590620858,2.0,2047.1,2045.8,2.4617]
[1617590621359,2.0,2047.1,2046.8,5.15766196]
[1617590621758,2.90695,2046.9,2046.8,5.15766196]
[1617590622859,4.90695,2046.9,2046.8,5.15766196]
[1617590623460,4.90695,2046.9,2046.7,5.1577383]
[1617590624261,4.90695,2046.9,2046.8,5.15803145]
[1617590627368,4.90695,2046.9,2046.7,5.15808813]
[1617590629774,4.90695,2046.9,2046.6,5.15817806]
[1617590633376,2.90695,2046.9,2046.6,5.15817806]
[1617590633575,2.90695,2046.9,2046.7,5.15786033]
[1617590634475,4.90695,2046.9,2046.7,5.15786033]
[1617590635078,2.90695,2046.9,2046.7,5.15786033]
[1617590636977,2.90695,2046.9,2046.8,5.15808353]
[1617590637777,2.90695,2046.9,2046.7,6.30396111]
[1617590637976,2.90695,2046.9,2046.8,65.3443]
[1617590639276,2.90695,2046.9,2046.8,71.64810629]
[1617590641379,2.90695,2046.9,2046.8,65.3443]
[1617590642884,2.90695,2046.9,2046.7,6.30385204]
[1617590643283,74.82115,2046.9,2046.6,6.30409486]
[1617590643582,74.82115,2046.9,2046.7,5.15761913]
[1617590644385,76.82115,2046.9,2046.7,5.15761913]
[1617590644584,74.82115,2046.9,2046.7,5.15761913]
[1617590645387,74.82115,2046.9,2046.6,5.15811622]
[1617590645585,76.52635,2046.9,2046.6,5.15811622]
[1617590645787,2.0,2046.8,2046.5,5.15815985]
[1617590645986,2.90695,2046.6,2046.5,5.15815985]
[1617590646689,2.90695,2046.6,2045.9,7.45067533]
[1617590647088,2.90695,2046.6,2045.6,7.45123784]
[1617590647488,55.1141,2046.3,2045.6,7.45123784]
[1617590647688,57.3541,2046.3,2045.6,7.45123784]
[1617590648089,2.90695,2045.7,2045.6,7.45123784]
[1617590648890,2.90695,2045.7,2045.6,8.42673784]
[1617590649091,2.90695,2045.7,2045.6,7.45123784]
[1617590650092,2.90695,2045.7,2045.6,10.35818784]
[1617590650895,2.90695,2045.7,2045.6,2.90695]
[1617590651795,2.90695,2045.7,2045.6,10.35374584]
[1617590651995,2.90695,2045.7,2045.6,2.90695]
[1617590652796,2.90695,2045.7,2045.5,7.44679628]
[1617590652995,4.62265,2045.7,2045.5,7.44679628]
[1617590654996,4.62265,2045.7,2045.4,7.44701305]
[1617590655800,4.62265,2045.7,2045.5,7.44672921]
[1617590655999,2.90695,2045.7,2045.5,7.44672921]
[1617590657600,2.90695,2045.7,2045.4,10.35510258]
[1617590658901,2.90695,2045.7,2045.4,2.90695]
[1617590659100,2.90695,2045.7,2045.4,10.35408398]
[1617590659502,2.90695,2045.7,2045.5,7.44674867]
[1617590661302,2.90695,2045.7,2045.4,10.35117417]
[1617590661703,2.90695,2045.7,2045.5,7.44421694]
[1617590663407,2.90695,2045.7,2045.4,10.35120804]
[1617590664907,2.90695,2045.7,2045.4,7.44425804]
[1617590665106,75.5865,2045.5,2045.4,7.44425804]
[1617590665507,75.5865,2045.5,2045.3,7.44478273]
[1617590665922,75.5865,2045.5,2045.2,7.44495542]
[1617590666311,5.39385,2045.3,2045.1,10.35194511]
[1617590668112,5.39385,2045.3,2045.2,7.44407903]
[1617590668515,5.39385,2045.3,2045.1,10.35115627]
[1617590671115,2.90695,2045.3,2045.1,10.35115627]
[1617590671414,2.90695,2045.3,2045.1,2.90695]
[1617590672615,2.90695,2045.3,2045.1,10.3514043]
[1617590672916,2.90695,2045.3,2045.1,2.90695]
[1617590679223,4.70125,2045.3,2045.2,6.29254461]
[1617590681229,4.70125,2045.3,2045.1,9.19803857]
[1617590684631,2.90695,2045.3,2045.1,9.19803857]
[1617590684829,2.90695,2045.3,2045.2,6.29083514]
[1617590685229,2.90695,2045.3,2045.1,9.19370879]
[1617590686231,2.90695,2045.3,2045.1,2.90695]
[1617590687236,2.90695,2045.3,2045.2,5.14376304]
[1617590691640,2.90695,2045.3,2045.1,8.04938137]
[1617590698250,2.90695,2045.3,2045.1,2.90695]
[1617590698650,2.90695,2045.3,2045.1,8.04732128]
[1617590701054,2.90695,2045.3,2045.1,9.02022128]
[1617590701253,2.90695,2045.3,2045.2,79.1261]
[1617590702658,2.90695,2045.3,2045.1,8.04732128]
[1617590702859,2.90695,2045.3,2045.2,5.14136945]
[1617590704460,2.90695,2045.3,2045.1,8.04838938]
[1617590705360,61.0996,2045.2,2045.1,8.04838938]
[1617590705861,2.90695,2045.3,2045.1,8.04838938]
[1617590706661,2.90695,2045.3,2045.2,5.14132664]
[1617590708463,2.90695,2045.3,2045.1,9.19143942]
[1617590713763,2.90695,2045.3,2045.2,6.28776335]
[1617590717566,2.90695,2045.3,2045.1,9.19478713]
[1617590717965,2.90695,2045.3,2045.2,6.2878503]
[1617590718368,2.90695,2045.3,2045.1,9.19482752]
[1617590718968,2.90695,2045.3,2045.2,6.28758476]
[1617590719369,2.90695,2045.3,2045.1,2.90695]
[1617590721070,66.1353,2045.5,2045.1,2.90695]
[1617590721471,66.1353,2045.5,2045.3,6.28933677]
[1617590721874,66.1353,2045.5,2045.4,6.28929448]
[1617590722875,66.1353,2045.5,2045.4,9.19624448]
[1617590724377,66.1353,2045.5,2045.4,2.90695]
[1617590731987,66.1353,2045.5,2045.4,4.87745]
[1617590735992,66.1353,2045.5,2045.4,2.90695]
[1617590737198,66.1353,2045.5,2045.4,5.62005]
[1617590737396,2.90695,2045.6,2045.4,5.62005]
[1617590737596,75.4867,2046.7,2045.6,74.4086]
[1617590737997,75.4867,2046.7,2046.1,5.1522144]
[1617590738196,13.5313,2047.9,2046.1,5.1522144]
[1617590738397,2.01424093,2048.2,2046.1,7.7021144]
[1617590738800,2.0,2048.2,2046.8,2.90695]
[1617590738996,2.0,2048.2,2046.8,4.96795]
[1617590740598,0.9907,2048.3,2046.8,4.96795]
[1617590740799,2.90695,2046.9,2046.8,4.96795]
[1617590741901,2.90695,2046.9,2046.8,85.73335]
[1617590743105,2.90695,2046.9,2046.8,82.8264]
[1617590745406,2.90695,2046.9,2046.8,2.061]
[1617590745606,2.90695,2046.9,2046.5,2.90695]
[1617590745806,2.90695,2046.9,2046.6,81.0544]
[1617590749108,2.90695,2046.9,2046.5,2.90695]
[1617590749710,2.90695,2046.9,2046.5,63.95335]
[1617590750912,2.90695,2046.6,2046.5,63.95335]
[1617590755319,62.114,2047.4,2046.5,66.63625]
[1617590756919,62.114,2047.4,2046.9,2.90695]
[1617590757125,62.114,2047.4,2046.5,61.0464]
[1617590758521,2.0,2047.3,2046.5,61.0464]
[1617590758720,3.9285,2047.3,2046.5,61.0464]
[1617590758920,2.90695,2046.6,2046.5,61.0464]
[1617590759121,5.09425,2046.6,2046.0,2.90695]
[1617590759321,5.09425,2046.6,2045.8,5.1374845]
[1617590759522,81.2152,2046.5,2045.8,5.1374845]
[1617590761020,81.2152,2046.5,2046.1,2.90695]
[1617590762922,2.90695,2046.2,2046.1,2.90695]
[1617590765229,2.90695,2046.2,2045.8,5.13736827]
[1617590766628,2.90695,2046.2,2045.7,72.25223694]
[1617590767029,2.90695,2045.8,2045.7,72.25223694]
[1617590767229,4.61975,2045.8,2045.5,5.13786211]
[1617590767430,73.38565,2045.8,2045.5,5.13786211]
[1617590767929,73.38565,2045.8,2045.4,5.13814175]
[1617590768229,4.61975,2045.8,2045.4,5.13814175]
[1617590768631,4.61975,2045.8,2045.7,76.1338]
[1617590771134,4.61975,2045.8,2045.7,79.04075]
[1617590771534,1.7128,2045.8,2045.7,79.04075]
[1617590771834,66.0024,2046.4,2045.7,79.04075]
[1617590772036,66.0024,2046.4,2045.7,2.90695]
[1617590773135,66.0024,2046.4,2046.2,2.90695]
[1617590775140,2.90695,2046.3,2046.2,2.90695]
[1617590777041,2.90695,2046.3,2046.2,65.88665]
[1617590778940,2.90695,2046.3,2046.2,62.9797]
[1617590798576,2.90695,2046.3,2045.6,5.14528035]
[1617590798777,80.4227,2046.2,2045.6,5.14528035]
[1617590798977,82.7317,2046.2,2045.6,5.14528035]
[1617590799178,2.90695,2045.7,2045.6,8.05223035]
[1617590799577,4.96645,2045.7,2045.6,5.14528035]
[1617590800981,2.90695,2045.7,2045.6,5.14528035]
[1617590803785,2.90695,2045.7,2045.4,9.19562598]
[1617590804184,2.90695,2045.7,2045.5,6.28838113]
[1617590808186,2.90695,2045.7,2045.6,5.1452949]
[1617590809388,2.90695,2045.7,2045.4,9.19564376]
[1617590809389,2.90695,2045.7,2045.5,6.29036641]
[1617590809789,2.90695,2045.7,2045.6,5.14667004]
[1617590810891,2.90695,2045.7,2045.4,6.29037449]
[1617590810892,2.90695,2045.7,2045.5,6.29016002]
[1617590811293,2.90695,2045.7,2045.6,2.90695]
[1617590811491,0.9754,2046.5,2045.6,4.95345]
[1617590811691,2.9711,2047.1,2045.6,4.95345]
[1617590811893,2.9711,2047.1,2045.7,5.14631718]
[1617590813196,2.9711,2047.1,2046.1,2.90695]
[1617590813797,2.9711,2047.1,2045.8,5.14611653]
[1617590814697,0.9711,2047.1,2045.8,5.14611653]
[1617590814896,2.9711,2047.1,2045.8,5.14611653]
[1617590815295,2.90695,2045.9,2045.8,8.05306653]
[1617590815495,2.90695,2045.9,2045.8,2.90695]
[1617590815896,2.90695,2045.9,2045.8,8.05310196]
[1617590817598,2.90695,2045.9,2045.8,2.90695]
[1617590819101,5.13475,2045.9,2045.8,2.90695]
[1617590819899,6.10905,2045.9,2045.8,2.90695]
[1617590820100,5.13475,2045.9,2045.8,2.90695]
[1617590822206,3.87935,2045.9,2045.8,2.90695]
[1617590822406,2.90695,2045.9,2045.8,2.90695]
[1617590823210,2.90695,2045.9,2045.8,8.05317549]
[1617590823608,2.90695,2045.9,2045.8,2.90695]
[1617590825910,2.90695,2045.9,2045.8,9.19630239]
[1617590826811,2.90695,2045.9,2045.8,2.90695]
[1617590827012,2.90695,2045.9,2045.8,9.19623229]
[1617590829218,3.89765,2045.9,2045.8,9.19623229]
[1617590829416,3.89765,2045.9,2045.8,2.90695]
[1617590829616,2.90695,2045.9,2045.8,9.19744614]
[1617590830616,2.90695,2045.9,2045.8,2.90695]
[1617590831721,2.90695,2045.9,2045.8,8.05749632]
[1617590834024,2.90695,2045.9,2045.8,2.90695]
[1617590834419,2.90695,2045.9,2045.8,8.05758206]
[1617590834819,2.90695,2045.9,2045.8,2.90695]
[1617590835919,2.90695,2045.9,2045.8,9.20178876]
[1617590837822,2.90695,2045.9,2045.8,2.90695]
[1617590838022,2.90695,2045.9,2045.8,8.05746003]
[1617590842731,2.90695,2045.9,2045.8,2.90695]
[1617590845937,2.90695,2045.9,2045.8,8.06097895]
[1617590846337,2.90695,2045.9,2045.8,2.90695]
[1617590849739,2.90695,2045.9,2045.8,8.06086549]
[1617590849939,2.90695,2045.9,2045.8,2.90695]
[1617590850843,2.90695,2045.9,2045.8,8.06087021]
[1617590853450,2.90695,2045.9,2045.8,2.90695]
[1617590853851,2.90695,2045.9,2045.8,8.0619969]
[1617590854251,2.90695,2045.9,2045.8,5.1550469]
[1617590854451,2.90695,2045.9,2044.6,79.1775]
[1617590854452,4.90695,2045.9,2045.7,5.15529735]
[1617590854852,4.90695,2045.9,2045.6,5.15559522]
[1617590855654,5.87485,2045.9,2045.6,5.15559522]
[1617590855858,4.90695,2045.9,2045.5,5.15565641]
[1617590856555,4.90695,2045.9,2045.4,5.15596135]
[1617590856855,4.90695,2045.9,2045.5,5.15593097]
[1617590857456,56.5352,2045.8,2045.5,5.15593097]
[1617590857656,2.90695,2045.6,2045.4,5.15594664]
[1617590857855,5.03585,2045.6,2045.4,5.15594664]
[1617590862958,5.03585,2045.6,2045.3,5.15133583]
[1617590867460,5.03585,2045.6,2045.4,5.15215825]
[1617590868359,2.1289,2045.6,2045.4,5.15215825]
[1617590868559,58.5352,2045.8,2045.4,5.15215825]
[1617590868962,2.0,2045.8,2045.4,5.15215825]
[1617590869159,70.0769,2046.1,2045.4,5.15215825]
[1617590869861,2.90695,2045.5,2045.4,5.15215825]
[1617590870261,83.19465,2045.5,2045.4,5.15215825]
[1617590871761,83.19465,2045.5,2045.2,6.2970823]
[1617590872166,83.19465,2045.5,2045.4,5.15210312]
[1617590875770,83.19465,2045.5,2045.3,5.15089557]
[1617590878070,83.19465,2045.5,2045.4,5.15079852]
[1617590878570,2.90695,2045.5,2045.4,5.15079852]
[1617590880174,2.90695,2045.5,2045.3,72.45126805]
[1617590880572,2.90695,2045.5,2045.4,5.15062553]
[1617590882874,2.90695,2045.5,2045.3,5.15109218]
[1617590883073,4.83545,2045.5,2045.3,5.15109218]
[1617590883273,4.83545,2045.5,2045.2,5.15144266]
[1617590883474,6.83545,2045.5,2045.2,5.15144266]
[1617590884074,6.83545,2045.5,2045.1,5.15153753]
[1617590885980,2.90695,2045.2,2045.1,5.15153753]
[1617590887880,2.90695,2045.2,2045.0,5.14873127]
[1617590888282,2.0,2045.1,2045.0,5.14873127]
[1617590889580,2.0,2045.1,2044.1,2.90695]
[1617590889581,2.0,2045.1,2044.9,5.14815508]
[1617590890283,67.7881,2044.9,2044.7,5.14832054]
[1617590890480,69.5353,2044.9,2044.7,5.14832054]
[1617590892084,2.90695,2044.8,2044.7,5.14832054]
[1617590895487,2.90695,2044.8,2044.5,5.1433409]
[1617590900289,2.90695,2044.8,2044.4,5.14223901]
[1617590900990,2.90695,2044.8,2044.1,2.90695]
[1617590900991,2.90695,2044.8,2044.5,5.14221918]
[1617590906496,2.90695,2044.8,2044.2,5.14272309]
[1617590906895,2.90695,2044.8,2044.1,8.04988308]
[1617590907094,2.0,2044.7,2044.1,8.04988308]
[1617590907496,2.0,2044.7,2044.1,2.90695]
[1617590908298,4.94515,2044.2,2044.1,2.90695]
[1617590920618,2.90695,2044.2,2044.1,2.90695]
[1617590929432,2.90695,2044.2,2044.1,8.04234152]
[1617590930833,2.90695,2044.2,2044.1,2.90695]
[1617590931234,2.90695,2044.2,2044.1,8.04504838]
[1617590932338,2.90695,2044.2,2044.1,2.90695]
[1617590932739,2.90695,2044.2,2044.1,8.04508491]
[1617590932937,2.89764462,2044.2,2044.1,8.04508491]
[1617590933337,2.89764462,2044.2,2044.1,9.03658491]
[1617590934239,2.89764462,2044.2,2044.1,3.89845]
[1617590934438,2.89764462,2044.2,2044.1,2.90695]
[1617590939240,2.89764462,2044.2,2044.1,9.18672498]
[1617590941042,2.89764462,2044.2,2044.1,2.90695]
[1617590942542,56.6759,2045.0,2044.1,2.90695]
[1617590942742,2.0,2046.0,2044.8,2.90695]
[1617590942944,2.0,2046.0,2044.8,5.42365]
[1617590943544,80.9656,2047.0,2044.8,5.42365]
[1617590943743,2.0,2046.8,2044.8,5.42365]
[1617590944144,2.0,2046.8,2044.8,10.56723199]
[1617590944544,2.0,2046.8,2045.0,5.1433607]
[1617590944743,2.0,2046.8,2045.4,2.90695]
[1617590944944,2.0,2046.8,2045.4,5.48135]
[1617590945143,2.0,2046.8,2046.0,60.7576]
[1617590945343,2.0,2046.8,2046.0,62.8029]
[1617590946543,2.0,2046.8,2046.0,60.7576]
[1617590946743,2.90695,2046.1,2046.0,60.7576]
[1617590947343,2.90695,2046.1,2045.4,2.90695]
[1617590947745,2.90695,2046.1,2045.6,81.4753]
[1617590948745,2.90695,2045.7,2045.6,81.4753]
[1617590948945,5.35845,2045.7,2045.6,81.4753]
[1617590950447,2.90695,2045.7,2045.6,81.4753]
[1617590950948,2.90695,2045.7,2045.4,2.90695]
[1617590953552,2.90695,2045.7,2045.6,81.5586]
[1617590956558,2.90695,2045.7,2045.6,82.5464]
[1617590956958,2.90695,2045.7,2045.6,0.9878]
[1617590957361,62.9042,2045.6,2045.2,5.14387481]
[1617590957963,62.9042,2045.6,2045.1,5.14208522]
[1617590958365,62.9042,2045.6,2044.8,6.28477083]
[1617590958366,62.9042,2045.6,2044.8,5.14237925]
[1617590958563,64.9042,2045.6,2044.8,5.14237925]